[Event "15th Golden Prague Rapid Open"]
[Site "Prague"]
[Date "2019.06.30"]
[Round "7.7"]
[White "Barton, Milan"]
[Black "Groh, Jiri"]
[Result "0-1"]
[ECO "B39"]
[WhiteElo "1763"]
[BlackElo "2001"]
[Annotator "NA"]
[PlyCount "102"]
[EventDate "2019.06.30"]
[EventType "swiss"]
[EventCountry "CZE"]
[SourceTitle "playchess.com"]
[Source "ChessBase"]
[SourceQuality "1"]
[TimeControl "720+3"]

1. e4 {[%emt 0:12:03]} c5 {[%emt 0:12:03]} 2. Nf3 {[%emt 0:00:03]} Nc6 {[%emt 0:00:03]} 3. d4 {[%emt 0:00:03]} cxd4 {[%emt 0:00:03]} 4. Nxd4 g6 {[%emt 0:00:03]} 5. c4 {[%emt 0:00:06]} Bg7 {[%emt 0:00:03]} 6. Be3 {[%emt 0:00:03]} Nf6 {[%emt 0:00:03]} 7. Nc3 {[%emt 0:00:03]} Ng4 {[%emt 0:00:03]} 8. Qxg4 {[%emt 0:00:03]} Nxd4 {[%emt 0:00:03]} 9. Qd1 {[%emt 0:00:03]} e5 {[%emt 0:00:03]} 10. Be2 {[%emt 0:00:03]} O-O {[%emt 0:00:03]} 11. O-O {[%emt 0:00:03]} d6 {[%emt 0:00:03]} 12. Nd5 {[%emt 0:00:03]} Be6 {[%emt 0:00:03]} 13. Bd3 {[%emt 0:00:03]} Rc8 {[%emt 0:00:03]} 14. b3 {[%emt 0:00:03]} b6 {[%emt 0:00:03]} 15. f4 {[%emt 0:00:03]} Bxd5 {[%emt 0:00:03]} 16. cxd5 {[%emt 0:00:03]} Rc5 {[%emt 0:00:03]} 17. f5 {[%emt 0:00:03]} Qe7 {[%emt 0:00:03]} 18. fxg6 {[%emt 0:00:03]} hxg6 {[%emt 0:00:03]} 19. g3 {[%emt 0:00:03]} Rfc8 {[%emt 0:00:03]} 20. Bd2 {[%emt 0:00:03]} Qd7 {[%emt 0:00:03]} 21. b4 {[%emt 0:00:03]} R5c7 {[%emt 0:00:03]} 22. Ba6 {[%emt 0:00:03]} Rf8 {[%emt 0:00:03]} 23. Kg2 {[%emt 0:00:03]} b5 {[%emt 0:00:03]} 24. a4 {[%emt 0:00:03]} bxa4 {[%emt 0:00:03]} 25. Qxa4 {[%emt 0:00:03]} Qg4 {[%emt 0:00:03]} 26. Bd3 {[%emt 0:00:03]} Rfc8 {[%emt 0:00:03]} 27. h3 {[%emt 0:00:03]} Qd7 {[%emt 0:00:03]} 28. Qxd7 {[%emt 0:00:03]} Rxd7 {[%emt 0:00:03]} 29. Rfd1 {[%emt 0:00:03]} Rb8 {[%emt 0:00:03]} 30. Ra6 {[%emt 0:00:03]} Nb3 {[%emt 0:00:03]} 31. Be3 {[%emt 0:00:03]} Rxb4 {[%emt 0:00:03]} 32. Rxa7 {[%emt 0:00:03]} Rxa7 {[%emt 0:00:03]} 33. Bxa7 {[%emt 0:00:03]} Nd4 {[%emt 0:00:03]} 34. Bxd4 {[%emt 0:00:03]} Rxd4 {[%emt 0:00:03]} 35. Kf3 {[%emt 0:00:03]} Bh6 {[%emt 0:00:03]} 36. h4 {[%emt 0:00:03]} f5 {[%emt 0:00:03]} 37. Ke2 {[%emt 0:00:03]} fxe4 {[%emt 0:00:03]} 38. Bb1 {[%emt 0:00:03]} Rb4 {[%emt 0:00:03]} 39. g4 {[%emt 0:00:03]} Bf4 {[%emt 0:00:03]} 40. h5 {[%emt 0:00:03]} gxh5 {[%emt 0:00:03]} 41. gxh5 {[%emt 0:00:03]} Kh7 {[%emt 0:00:03]} 42. Ke1 {[%emt 0:00:03]} Kh6 {[%emt 0:00:03]} 43. Ba2 {[%emt 0:00:03]} e3 {[%emt 0:00:03]} 44. Rb1 {[%emt 0:00:03]} Ra4 {[%emt 0:00:03]} 45. Bb3 {[%emt 0:00:03]} Ra6 {[%emt 0:00:03]} 46. Ke2 {[%emt 0:00:03]} Kxh5 {[%emt 0:00:03]} 47. Rh1+ {[%emt 0:00:03]} Kg4 {[%emt 0:00:03]} 48. Rg1+ {[%emt 0:00:03]} Kf5 {[%emt 0:00:03]} 49. Bc2+ {[%emt 0:00:03]} e4 {[%emt 0:00:03]} 50. Rg8 {[%emt 0:00:03]} Ra2 {[%emt 0:00:03]} 51. Rf8+ {[%emt 0:00:03]} Ke5 {[%emt 0:00:03]} 0-1

[Event "15th Golden Prague Rapid Open"]
[Site "Prague"]
[Date "2019.06.30"]
[Round "7.8"]
[White "Feierfeil, Jiri"]
[Black "Vavrinec, Tomas"]
[Result "0-1"]
[ECO "D32"]
[WhiteElo "1772"]
[BlackElo "1994"]
[Annotator "NA"]
[PlyCount "116"]
[EventDate "2019.06.30"]
[EventType "swiss"]
[EventCountry "CZE"]
[SourceTitle "playchess.com"]
[Source "ChessBase"]
[SourceQuality "1"]
[TimeControl "720+3"]

1. d4 {[%emt 0:00:00]} e6 {[%emt 0:00:00]} 2. c4 {[%emt 0:00:01]} d5 {[%emt 0:00:00]} 3. e3 {[%emt 0:00:07]} Nf6 {[%emt 0:00:04]} 4. Nc3 {[%emt 0:00:05]} c5 {[%emt 0:00:11]} 5. Nf3 {[%emt 0:00:15]} Nc6 {[%emt 0:00:02]} 6. cxd5 {[%emt 0:00:27]} exd5 {[%emt 0:00:03]} 7. Bb5 {[%emt 0:00:15]} Bg4 {[%emt 0:00:19]} 8. O-O {[%emt 0:00:10]} Rc8 {[%emt 0:00:28]} 9. h3 {[%emt 0:00:06]} Bh5 {[%emt 0:00:02]} 10. Bd2 {[%emt 0:00:13]} Be7 {[%emt 0:00:06]} 11. Be2 {[%emt 0:00:14]} O-O {[%emt 0:00:06]} 12. a3 {[%emt 0:00:03]} c4 {[%emt 0:00:49]} 13. Nh2 {[%emt 0:00:29]} Bxe2 {[%emt 0:00:09]} 14. Qxe2 {[%emt 0:00:07]} Na5 {[%emt 0:00:02]} 15. Rab1 {[%emt 0:00:18]} Nb3 {[%emt 0:00:08]} 16. Ng4 {[%emt 0:00:17]} Re8 {[%emt 0:00:31]} 17. Nxf6+ {[%emt 0:00:04]} Bxf6 {[%emt 0:00:03]} 18. Qd1 {[%emt 0:00:33]} a6 {[%emt 0:00:17]} 19. Ne2 {[%emt 0:00:06]} b5 {[%emt 0:00:21]} 20. Nc1 {[%emt 0:00:13]} Nxc1 {[%emt 0:00:34]} 21. Qxc1 {[%emt 0:00:12]} a5 {[%emt 0:00:15]} 22. Bc3 {[%emt 0:00:25]} Qb6 {[%emt 0:00:05]} 23. Qd2 {[%emt 0:00:24]} Ra8 {[%emt 0:00:09]} 24. Rfc1 {[%emt 0:00:10]} Reb8 {[%emt 0:00:06]} 25. b4 {[%emt 0:00:05]} axb4 {[%emt 0:00:53]} 26. Bxb4 {[%emt 0:00:25]} Ra4 {[%emt 0:00:47]} 27. Qc2 {[%emt 0:00:10]} Qa6 {[%emt 0:00:06]} 28. Qf5 {[%emt 0:00:11]} Qe6 {[%emt 0:00:30]} 29. Qf4 {[%emt 0:00:15]} Rb7 {[%emt 0:00:31]} 30. Rc3 {[%emt 0:00:17]} g6 {[%emt 0:00:58]} 31. g4 {[%emt 0:00:08]} Kg7 {[%emt 0:00:50]} 32. Bc5 {[%emt 0:00:01]} Bd8 {[%emt 0:00:12]} 33. Qf3 {[%emt 0:00:08]} Bc7 {[%emt 0:00:37]} 34. Re1 {[%emt 0:00:20]} Bd6 {[%emt 0:01:02]} 35. Rd1 {[%emt 0:00:20]} b4 {[%emt 0:00:28]} 36. axb4 {[%emt 0:00:15]} Ra2 {[%emt 0:00:13]} 37. Rxc4 {[%emt 0:00:20]} dxc4 {[%emt 0:00:25]} 38. Qxb7 {[%emt 0:00:05]} Bxc5 {[%emt 0:00:32]} 39. bxc5 {[%emt 0:00:03]} c3 {[%emt 0:00:02]} 40. Rc1 {[%emt 0:01:31]} Rb2 {[%emt 0:00:23]} 41. Qg2 {[%emt 0:01:55]} c2 {[%emt 0:00:02]} 42. Qf1 {[%emt 0:00:05]} Qb3 {[%emt 0:00:05]} 43. Kg2 {[%emt 0:00:57]} Rb1 {[%emt 0:00:08]} 44. Kg3 {[%emt 0:00:35]} Qb2 {[%emt 0:00:03]} 45. Rxb1 {[%emt 0:00:23]} cxb1=Q {[%emt 0:00:05]} 46. Qg2 {[%emt 0:00:10]} Qb8+ {[%emt 0:00:07]} 47. Kh4 {[%emt 0:00:12]} Qd8+ {[%emt 0:00:05]} 48. g5 {[%emt 0:00:02]} Qf5 {[%emt 0:00:06]} 49. f4 {[%emt 0:00:02]} h6 {[%emt 0:00:08]} 50. c6 {[%emt 0:00:04]} hxg5+ {[%emt 0:00:03]} 51. fxg5 {[%emt 0:00:01]} Qc7 {[%emt 0:00:04]} 52. d5 {[%emt 0:00:02]} Qd6 {[%emt 0:00:05]} 53. e4 {[%emt 0:00:04]} Qfe5 {[%emt 0:00:02]} 54. Qf3 {[%emt 0:00:07]} f6 {[%emt 0:00:01]} 55. gxf6+ {[%emt 0:00:02]} Qdxf6+ {[%emt 0:00:02]} 56. Qxf6+ Kxf6 {[%emt 0:00:01]} 57. Kg4 {[%emt 0:00:06]} Qxe4+ {[%emt 0:00:01]} 58. Kg3 Qxd5 {[%emt 0:00:02]} 0-1

[Event "15th Golden Prague Rapid Open"]
[Site "Prague"]
[Date "2019.06.30"]
[Round "7.9"]
[White "Franc, Lubor"]
[Black "Moravek, Jakub"]
[Result "1/2-1/2"]
[ECO "C42"]
[WhiteElo "1788"]
[BlackElo "1709"]
[Annotator "NA"]
[PlyCount "98"]
[EventDate "2019.06.30"]
[EventType "swiss"]
[EventCountry "CZE"]
[SourceTitle "playchess.com"]
[Source "ChessBase"]
[SourceQuality "1"]
[TimeControl "720+3"]

1. e4 {[%emt 0:00:00]} e5 {[%emt 0:00:00]} 2. Nf3 {[%emt 0:00:00]} Nf6 {[%emt 0:00:01]} 3. Nc3 {[%emt 0:00:03]} Bb4 {[%emt 0:00:07]} 4. d3 {[%emt 0:00:05]} Nc6 {[%emt 0:00:09]} 5. Bd2 {[%emt 0:00:02]} d6 {[%emt 0:00:07]} 6. h3 {[%emt 0:00:01]} O-O {[%emt 0:00:06]} 7. a3 {[%emt 0:00:07]} Bc5 {[%emt 0:00:17]} 8. Na4 {[%emt 0:00:07]} Bb6 {[%emt 0:00:06]} 9. Nxb6 {[%emt 0:00:02]} axb6 {[%emt 0:00:03]} 10. Be2 {[%emt 0:00:36]} Be6 {[%emt 0:00:05]} 11. O-O {[%emt 0:00:53]} h6 {[%emt 0:01:49]} 12. c3 {[%emt 0:00:18]} d5 {[%emt 0:00:09]} 13. Qc2 {[%emt 0:01:17]} dxe4 {[%emt 0:00:34]} 14. dxe4 {[%emt 0:00:02]} Qe7 {[%emt 0:00:23]} 15. Rad1 {[%emt 0:00:22]} Rfd8 {[%emt 0:00:18]} 16. Bb5 {[%emt 0:00:05]} Bd7 {[%emt 0:00:20]} 17. Nh2 {[%emt 0:01:00]} Qc5 {[%emt 0:00:24]} 18. Bd3 {[%emt 0:00:18]} Be6 {[%emt 0:00:15]} 19. Be3 {[%emt 0:00:08]} Qe7 {[%emt 0:00:17]} 20. f3 {[%emt 0:00:15]} Na5 {[%emt 0:00:21]} 21. Qe2 {[%emt 0:00:27]} Bb3 {[%emt 0:00:42]} 22. Bc2 {[%emt 0:00:48]} Bc4 {[%emt 0:00:44]} 23. Bd3 {[%emt 0:00:05]} Bb3 {[%emt 0:00:37]} 24. Bc2 {[%emt 0:00:50]} Bc4 {[%emt 0:00:04]} 25. Bd3 {[%emt 0:00:14]} Bb3 {[%emt 0:00:04]} 26. Rd2 {[%emt 0:00:49]} c5 {[%emt 0:00:14]} 27. Rc1 {[%emt 0:00:48]} c4 {[%emt 0:00:18]} 28. Bc2 {[%emt 0:00:14]} Rxd2 {[%emt 0:00:25]} 29. Bxd2 {[%emt 0:00:36]} Rd8 {[%emt 0:00:46]} 30. Be3 {[%emt 0:00:40]} Rd6 {[%emt 0:01:09]} 31. Rd1 {[%emt 0:00:25]} Qd7 {[%emt 0:00:24]} 32. Bxb3 {[%emt 0:00:30]} Nxb3 {[%emt 0:00:37]} 33. Rxd6 {[%emt 0:00:09]} Qxd6 {[%emt 0:00:04]} 34. Qxc4 {[%emt 0:00:04]} Qd1+ {[%emt 0:00:09]} 35. Nf1 {[%emt 0:00:02]} Qc2 {[%emt 0:00:11]} 36. Qc8+ {[%emt 0:00:22]} Kh7 {[%emt 0:00:04]} 37. Qxb7 {[%emt 0:00:16]} Qxb2 {[%emt 0:00:08]} 38. Qxb6 {[%emt 0:00:03]} Qxc3 {[%emt 0:00:11]} 39. a4 {[%emt 0:00:06]} Nd4 {[%emt 0:00:20]} 40. a5 {[%emt 0:00:11]} Ne2+ {[%emt 0:00:14]} 41. Kh2 {[%emt 0:00:04]} Qa1 {[%emt 0:00:08]} 42. a6 {[%emt 0:00:16]} Qxf1 {[%emt 0:00:17]} 43. a7 {[%emt 0:00:06]} Qe1 {[%emt 0:00:08]} 44. Bf2 {[%emt 0:00:04]} Qc1 {[%emt 0:00:06]} 45. a8=Q {[%emt 0:00:06]} Qf4+ {[%emt 0:00:02]} 46. Kh1 {[%emt 0:00:01]} Qc1+ {[%emt 0:00:04]} 47. Bg1 {[%emt 0:00:01]} Ng3+ {[%emt 0:00:09]} 48. Kh2 {[%emt 0:00:02]} Nf1+ {[%emt 0:00:04]} 49. Kh1 {[%emt 0:00:01]} Ng3+ {[%emt 0:00:02]} 1/2-1/2